fUSD/lending_fUSD_20260409
["ID","MTS","AMOUNT","RATE_DAILY","PERIOD"]
[420091493,1775664653795,-151.0,0.0001571,2]
[420091494,1775664653806,-892.21053,0.0001571,2]
[420091495,1775664653817,-151.0,0.0001571,2]
[420091496,1775664653828,-151.0,0.0001571,2]
[420091497,1775664653838,-892.21053,0.0001571,2]
[420091498,1775664653849,-151.0,0.0001571,2]
[420091499,1775664653860,-151.0,0.0001571,2]
[420091500,1775664653871,-151.0,0.0001571,2]
[420091501,1775664653881,-195.251014,0.0001571,2]
[420091502,1775664653892,-195.251014,0.0001571,2]
[420091503,1775664653902,-195.251014,0.0001571,2]
[420091504,1775664653913,-195.251014,0.0001571,2]
[420091505,1775664653924,-1104.329926,0.0001571,2]
[420091506,1775664653935,-1104.329926,0.0001571,2]
[420091507,1775664653946,-1104.329926,0.0001571,2]
[420091508,1775664653957,-1104.329926,0.0001571,2]
[420091509,1775664653968,-690.106845,0.0001571,2]
[420091510,1775664653979,-690.106845,0.0001571,2]
[420091511,1775664653990,-151.0,0.0001571,2]
[420091512,1775664654000,-690.106845,0.0001571,2]
[420091513,1775664654011,-690.106845,0.0001571,2]
[420091514,1775664654022,-677.558532,0.0001571,2]
[420091515,1775664654033,-677.558532,0.0001571,2]
[420091516,1775664654044,-677.558532,0.0001571,2]
[420091517,1775664654055,-240.956828,0.0001571,2]
[420091518,1775664654066,-966.821984,0.0001571,2]
[420091519,1775664654077,-677.558532,0.0001571,2]
[420091520,1775664654087,-240.956828,0.0001571,2]
[420091521,1775664654097,-966.821984,0.0001571,2]
[420091522,1775664654109,-240.956828,0.0001571,2]
[420091523,1775664654120,-966.821984,0.0001571,2]
[420091524,1775664654131,-240.956828,0.0001571,2]
[420091525,1775664654141,-966.821984,0.0001571,2]
[420091526,1775664654151,-570.868716,0.0001571,2]
[420091527,1775664654163,-967.023782,0.0001571,2]
[420091528,1775664654173,-570.868716,0.0001571,2]
[420091529,1775664654184,-967.023782,0.0001571,2]
[420091530,1775664654194,-570.868716,0.0001571,2]
[420091531,1775664654205,-967.023782,0.0001571,2]
[420091532,1775664654216,-570.868716,0.0001571,2]
[420091533,1775664654227,-151.0,0.0001571,2]
[420091534,1775664654239,-967.023782,0.0001571,2]
[420091535,1775664654250,-151.0,0.0001571,2]
[420091536,1775664654262,-607.236238,0.0001571,2]
[420091537,1775664654273,-151.0,0.0001571,2]
[420091538,1775664654284,-607.236238,0.0001571,2]
[420091539,1775664654295,-607.236238,0.0001571,2]
[420091540,1775664654306,-607.236238,0.0001571,2]
[420091541,1775664654315,-601.831129,0.0001571,2]
[420091542,1775664654326,-601.831129,0.0001571,2]
[420091543,1775664654336,-601.831129,0.0001571,2]
[420091544,1775664654347,-601.831129,0.0001571,2]
[420091545,1775664654358,-151.0,0.0001571,2]
[420091546,1775664654368,-151.0,0.0001571,2]
[420091547,1775664654379,-151.0,0.0001571,2]
[420091548,1775664654389,-151.0,0.0001571,2]
[420091549,1775664654399,-151.0,0.0001571,2]
[420091550,1775664654410,-151.0,0.0001571,2]
[420091551,1775664654420,-151.0,0.0001571,2]
[420091552,1775664654431,-151.0,0.0001571,2]
[420091553,1775664654441,-1239.812975,0.0001571,2]
[420091554,1775664654451,-228.495537,0.0001571,2]
[420091555,1775664654462,-151.0,0.0001571,2]
[420091556,1775664654473,-151.0,0.0001571,2]
[420091557,1775664654484,-1239.812975,0.0001571,2]
[420091558,1775664654494,-228.495537,0.0001571,2]
[420091559,1775664654505,-1239.812975,0.0001571,2]
[420091560,1775664654515,-151.0,0.0001571,2]
[420091561,1775664654526,-228.495537,0.0001571,2]
[420091562,1775664654541,-978.299062,0.0001571,2]
[420091563,1775664654552,-1239.812975,0.0001571,2]
[420091564,1775664654563,-228.495537,0.0001571,2]
[420091565,1775664654574,-978.299062,0.0001571,2]
[420091566,1775664654585,-1521.784418,0.0001571,2]
[420091567,1775664654596,-978.299062,0.0001571,2]
[420091568,1775664654607,-1521.784418,0.0001571,2]
[420091569,1775664654618,-461.738731,0.0001571,2]
[420091570,1775664654629,-151.0,0.0001571,2]
[420091571,1775664654640,-978.299062,0.0001571,2]
[420091572,1775664654650,-1521.784418,0.0001571,2]
[420091573,1775664654661,-461.738731,0.0001571,2]
[420091574,1775664654673,-151.0,0.0001571,2]
[420091575,1775664654683,-1521.784418,0.0001571,2]
[420091576,1775664654694,-461.738731,0.0001571,2]
[420091577,1775664654705,-151.0,0.0001571,2]
[420091578,1775664654716,-461.738731,0.0001571,2]
[420091579,1775664654727,-151.0,0.0001571,2]
[420091580,1775664654738,-151.0,0.0001571,2]
[420091581,1775664654748,-151.0,0.0001571,2]
[420091582,1775664654759,-596.763022,0.0001571,2]
[420091583,1775664654770,-596.763022,0.0001571,2]
[420091584,1775664654781,-596.763022,0.0001571,2]
[420091585,1775664654791,-596.763022,0.0001571,2]
[420091586,1775664654802,-196.634354,0.0001571,2]
[420091587,1775664654813,-151.0,0.0001571,2]
[420091588,1775664654823,-2527.009308,0.0001571,2]
[420091589,1775664654833,-196.634354,0.0001571,2]
[420091590,1775664654843,-2527.009308,0.0001571,2]
[420091591,1775664654853,-196.634354,0.0001571,2]
[420091592,1775664654864,-2527.009308,0.0001571,2]
[420091593,1775664654874,-1766.068685,0.0001571,2]
[420091594,1775664654885,-213.120018,0.0001571,2]
[420091595,1775664654895,-196.634354,0.0001571,2]
[420091596,1775664654906,-1066.22473,0.0001571,2]
[420091597,1775664654917,-2527.009308,0.0001571,2]
[420091598,1775664654927,-737.655984,0.0001571,2]
[420091599,1775664654937,-1766.068685,0.0001571,2]
[420091600,1775664654949,-213.120018,0.0001571,2]
[420091601,1775664654959,-289.111946,0.0001571,2]
[420091602,1775664654969,-1066.22473,0.0001571,2]
[420091603,1775664654980,-737.655984,0.0001571,2]
[420091604,1775664654991,-213.120018,0.0001571,2]
[420091605,1775664655001,-1766.068685,0.0001571,2]
[420091606,1775664655011,-289.111946,0.0001571,2]
[420091607,1775664655022,-1066.22473,0.0001571,2]
[420091608,1775664655033,-1624.698398,0.0001571,2]
[420091609,1775664655043,-216.387975,0.0001571,2]
[420091610,1775664655054,-737.655984,0.0001571,2]
[420091611,1775664655064,-213.120018,0.0001571,2]
[420091612,1775664655074,-151.0,0.0001571,2]
[420091613,1775664655085,-1766.068685,0.0001571,2]
[420091614,1775664655095,-289.111946,0.0001571,2]
[420091615,1775664655105,-1066.22473,0.0001571,2]
[420091616,1775664655115,-216.387975,0.0001571,2]
[420091617,1775664655125,-1624.698398,0.0001571,2]
[420091618,1775664655135,-737.655984,0.0001571,2]
[420091619,1775664655146,-289.111946,0.0001571,2]
[420091620,1775664655717,-216.387975,0.0001571,2]
[420091621,1775664655727,-1624.698398,0.0001571,2]
[420091622,1775664655740,-957.402999,0.0001571,2]
[420091623,1775664655750,-181.853145,0.0001571,2]
[420091624,1775664655761,-162.040424,0.0001571,2]
[420091625,1775664655772,-216.387975,0.0001571,2]
[420091626,1775664655782,-1624.698398,0.0001571,2]
[420091627,1775664655793,-957.402999,0.0001571,2]
[420091628,1775664655803,-162.040424,0.0001571,2]
[420091629,1775664655814,-181.853145,0.0001571,2]
[420091630,1775664655824,-957.402999,0.0001571,2]
[420091631,1775664655834,-483.943293,0.0001571,2]
[420091632,1775664655844,-162.040424,0.0001571,2]
[420091633,1775664655855,-181.853145,0.0001571,2]
[420091634,1775664655865,-957.402999,0.0001571,2]
[420091635,1775664655875,-483.943293,0.0001571,2]
[420091636,1775664655885,-162.040424,0.0001571,2]
[420091637,1775664655895,-181.853145,0.0001571,2]
[420091638,1775664655905,-151.0,0.0001571,2]
[420091639,1775664655915,-483.943293,0.0001571,2]
[420091640,1775664655925,-483.943293,0.0001571,2]
[420091641,1775664655934,-151.0,0.0001571,2]
[420091642,1775664655944,-1783.253125,0.0001571,2]
[420091643,1775664655954,-225.70265,0.0001571,2]
[420091644,1775664655964,-1783.253125,0.0001571,2]
[420091645,1775664655974,-225.70265,0.0001571,2]
[420091646,1775664655985,-1783.253125,0.0001571,2]
[420091647,1775664655995,-225.70265,0.0001571,2]
[420091648,1775664656005,-1783.253125,0.0001571,2]
[420091649,1775664656015,-225.70265,0.0001571,2]
[420091650,1775664656024,-5616765.36001094,0.0001571,2]
[420091651,1775664656970,-1305.80323701,0.0001571,2]
[420091652,1775664656983,-371.14445677,0.0001571,2]
[420091653,1775664656994,-469.73578931,0.0001571,2]
[420091654,1775664657005,-974.33676083,0.0001571,2]
[420091655,1775664657017,-3903.83753928,0.0001571,2]
[420091656,1775664657029,-1051.74850456,0.0001571,2]
[420091657,1775664657512,-523.41687048,0.0001571,2]
[420091658,1775664657716,-151.0,0.000101,2]
[420091659,1775664657731,-243.61843335,0.00010303,2]
[420091660,1775664657745,-228.26115186,0.0001571,2]
[420091661,1775664657765,-3300.0,0.0001571,2]
[420091662,1775664657782,-4590.76909521,0.0001571,2]
[420091663,1775664657797,-2138584.06317308,0.0001571,2]
[420091664,1775664657988,-151.0,0.00010303,2]
[420091665,1775664658001,-243.61843335,0.00010303,2]
[420091666,1775664658015,-155.33076072,0.00010309,2]
[420091667,1775664658091,5000.01,8.522e-05,2]
[420091668,1775664658569,-507.79604913,8.522e-05,2]
[420091669,1775664658628,-475.94909954,8.522e-05,2]
[420091670,1775664658647,-827.75733248,8.522e-05,2]
[420091671,1775664658719,-113.60734459,8.522e-05,2]
[420091672,1775664658739,-26116.66067426,8.522e-05,2]
[420091673,1775664658754,-160.0,0.00010877,2]
[420091674,1775664658769,-2619.998419,0.00010877,2]
[420091675,1775664658785,-341.06580669,0.000109,2]
[420091676,1775664658798,-441874.99550167,0.0001571,2]
[420091677,1775664659250,-5079.996839,0.00010877,2]
[420091678,1775664659269,-3572.725117,0.00011421,2]
[420091679,1775664659287,-1857.817061,0.00012508,2]
[420091680,1775664659302,-170.59,0.00013699,2]
[420091681,1775664659318,-32068.543486,0.0001571,2]
[420091682,1775664659338,-16031.52752629,0.0001571,2]
[420091683,1775664659359,-462.708,0.0001571,2]
[420091684,1775664659409,-345.53625,0.0001414,2]
[420091685,1775664659427,-321.372438,0.0001414,2]
[420091686,1775664659443,-1891.22756217,0.0001571,2]
[420091687,1775664659462,-1180.95304529,0.0001571,2]
[420091688,1775664659479,-4128.99526923,0.0001571,2]
[420091689,1775664659498,-400.88914376,0.0001571,2]
[420091690,1775664659517,-18970.19753558,0.0001571,2]
[420091691,1775664659535,-1434.61950838,0.0001571,2]
[420091692,1775664659552,-608.21731146,0.0001571,2]
[420091693,1775664661168,10000.01,8.503e-05,2]
[420091694,1775664661200,10000.01,8.503e-05,2]
[420091695,1775664661233,10000.01,8.503e-05,2]
[420091696,1775664661266,10000.01,8.503e-05,2]
[420091697,1775664661299,10000.01,8.503e-05,2]
[420091698,1775664661334,10000.01,8.503e-05,2]
[420091699,1775664661368,10000.01,8.503e-05,2]
[420091700,1775664661403,660723.13387775,8.503e-05,2]
[420091701,1775664661449,931436.04,8.503e-05,2]
[420091702,1775664661494,837840.75612225,8.503e-05,2]
[420091703,1775664663495,339.24114641,8.512e-05,2]
[420091704,1775664668916,283.332366,7.945e-05,2]
[420091706,1775664737353,-300.0,8.516e-05,2]
[420091707,1775664751401,-5000.0,8.517e-05,2]
[420091708,1775664751563,-150.0,8.517e-05,2]
[420091709,1775664793917,9700.01,8.178e-05,2]
[420091710,1775664793943,686.052409,8.178e-05,2]
[420091711,1775664798619,500.0,8.421e-05,2]
[420091712,1775664901298,172.0,8.129e-05,2]
[420091713,1775665177092,1217.4159849,8.511e-05,2]
[420091714,1775665377593,200.0,8.4e-05,2]
[420091715,1775665413175,4337.08,8.415e-05,2]
[420091716,1775665448163,200.0,8.4e-05,2]
[420091717,1775665449467,-300.0,8.517e-05,2]
[420091718,1775665449500,-1200.0,8.517e-05,2]
[420091719,1775665460250,2091.35,4.317e-05,2]
[420091720,1775665460302,2091.35,4.544e-05,2]
[420091721,1775665460344,2091.35,4.772e-05,2]
[420091722,1775665460467,725.96,4.999e-05,2]
[420091723,1775665460493,1365.39,4.999e-05,2]
[420091724,1775665460689,2091.35,5.226e-05,2]
[420091725,1775665460898,2091.35,5.453e-05,2]
[420091726,1775665461095,2091.35,5.681e-05,2]
[420091727,1775665461310,2091.35,5.908e-05,2]
[420091728,1775665461532,269.22,6.135e-05,2]
[420091729,1775665461557,1822.13,6.135e-05,2]
[420091730,1775665461801,2091.35,6.362e-05,2]
[420091731,1775665462104,2091.35,6.59e-05,2]
[420091732,1775665462519,2091.35,6.817e-05,2]
[420091733,1775665462724,1903.83,7.044e-05,2]
[420091734,1775665462751,187.52,7.044e-05,2]
[420091735,1775665463162,2091.35,7.271e-05,2]
[420091736,1775665463371,2091.35,7.498e-05,2]
[420091737,1775665463613,2091.35,7.726e-05,2]
[420091738,1775665463885,2091.35,7.953e-05,2]
[420091739,1775665464273,1447.09,8.18e-05,2]
[420091740,1775665464300,644.26,8.18e-05,2]
[420091741,1775665464493,2091.35,8.407e-05,2]
[420091742,1775665501118,300.0,8.517e-05,2]
[420091743,1775665501151,300.0,8.517e-05,2]
[420091744,1775665501182,300.0,8.517e-05,2]
[420091745,1775665501214,1200.0,8.517e-05,2]
[420091746,1775665553204,1924.47,8.387e-05,2]
[420091747,1775665745966,-300.0,8.517e-05,2]
[420091748,1775665745989,-272.0,8.517e-05,2]
[420091749,1775665746012,-2047.79022335,8.518e-05,2]
[420091750,1775665756517,-272.0,8.517e-05,2]
[420091751,1775665770168,-250.0,8.517e-05,2]
[420091752,1775665785371,-2952.20977665,8.518e-05,2]
[420091753,1775665803916,-1200.0,8.518e-05,2]
[420091754,1775665803996,-1666.30167588,8.518e-05,2]
[420091755,1775665804089,-3332.60335176,8.518e-05,2]
[420091756,1775665804210,-3334.80329648,8.518e-05,2]
[420091757,1775665807687,300.0,8.517e-05,2]
[420091758,1775665812785,1200.0,8.517e-05,2]
[420091759,1775665813366,272.0,8.517e-05,2]
[420091760,1775665815520,-5000.0,8.518e-05,2]
[420091761,1775665817786,0.01,8.518e-05,2]
[420091762,1775665817812,1051.94141404,8.518e-05,2]
[420091764,1775665832811,-1933.86916611,8.518e-05,2]
[420091765,1775665832823,-1271.14161176,8.518e-05,2]
[420091766,1775665832836,-1009.784997,8.518e-05,2]
[420091767,1775665832848,-785.20422513,8.518e-05,2]
[420091768,1775665832858,-194.27322423,8.518e-05,2]
[420091769,1775665832870,-4805.72677577,8.518e-05,2]
[420091770,1775665832881,-150.0,8.52e-05,2]
[420091772,1775665832892,-150.0,8.52e-05,2]
[420091774,1775665832902,-1051.95141404,8.52e-05,2]
[420091776,1775665832913,-150.0,8.521e-05,2]
[420091778,1775665832923,-150.0,8.521e-05,2]
[420091781,1775665832934,-150.0,8.521e-05,2]
[420091782,1775665832944,-602.8020892,8.521e-05,2]
[420091783,1775665832954,-1000.0,8.521e-05,2]
[420091784,1775665832964,-5002.73,8.521e-05,2]
[420091785,1775665832974,-500.0,8.521e-05,2]
[420091786,1775665832985,-500.0,8.521e-05,2]
[420091787,1775665832995,-500.0,8.521e-05,2]
[420091788,1775665833005,-500.0,8.521e-05,2]
[420091789,1775665833015,-500.0,8.521e-05,2]
[420091790,1775665833026,-500.0,8.521e-05,2]
[420091791,1775665833037,-500.0,8.521e-05,2]
[420091792,1775665833046,-500.0,8.521e-05,2]
[420091793,1775665833057,-500.0,8.521e-05,2]
[420091794,1775665833067,-367.4719823,8.521e-05,2]
[420091795,1775665833077,-500.0,8.521e-05,2]
[420091796,1775665833087,-500.0,8.521e-05,2]
[420091797,1775665833096,-500.0,8.521e-05,2]
[420091798,1775665833106,-500.0,8.521e-05,2]
[420091799,1775665833116,-500.0,8.521e-05,2]
[420091800,1775665833125,-500.0,8.521e-05,2]
[420091801,1775665833135,-500.0,8.521e-05,2]
[420091802,1775665833145,-500.0,8.521e-05,2]
[420091803,1775665833155,-500.0,8.521e-05,2]
[420091804,1775665833165,-500.0,8.521e-05,2]
[420091805,1775665833175,-500.0,8.521e-05,2]
[420091806,1775665833186,-500.0,8.521e-05,2]
[420091807,1775665833195,-500.0,8.521e-05,2]
[420091808,1775665833205,-500.0,8.521e-05,2]
[420091809,1775665833215,-500.0,8.521e-05,2]
[420091810,1775665833224,-500.0,8.521e-05,2]
[420091811,1775665833234,-500.0,8.521e-05,2]
[420091812,1775665833243,-500.0,8.521e-05,2]
[420091813,1775665833253,-500.0,8.521e-05,2]
[420091814,1775665833262,-500.0,8.521e-05,2]
[420091815,1775665833272,-500.0,8.521e-05,2]
[420091816,1775665833282,-482.16781843,8.521e-05,2]
[420091817,1775665833292,-371.23938005,8.521e-05,2]
[420091818,1775665833302,-500.0,8.521e-05,2]
[420091819,1775665833313,-239.24451914,8.521e-05,2]
[420091820,1775665833323,-483.36103957,8.521e-05,2]
[420091821,1775665833333,-150.99,8.522e-05,2]
[420091822,1775665833342,-499.99,8.522e-05,2]
[420091823,1775665833352,-41012.92539404,8.522e-05,2]
[420091824,1775665833365,-1605.99198305,8.522e-05,2]
[420091825,1775665833378,-1010.38057053,8.522e-05,2]
[420091826,1775665833390,-2922.36076613,8.522e-05,2]
[420091827,1775665833402,-571.68055395,8.522e-05,2]
[420091828,1775665833414,-30339.05632952,8.522e-05,2]
[420091829,1775665838346,-4134.16891772,8.522e-05,2]
[420091830,1775665838813,-11979.75265951,8.522e-05,2]
[420091831,1775665838826,-1313.60996539,8.522e-05,2]
[420091832,1775665838838,-1364.2629872,8.522e-05,2]
[420091882,1775665841468,-2801.30178774,8.522e-05,2]
[420091905,1775665843716,-25814.3911575,8.522e-05,2]
[420091906,1775665843730,-35848.90721879,8.522e-05,2]
[420091907,1775665844222,-3477.28940415,8.522e-05,2]
[420091949,1775665847865,-4813.38169941,8.522e-05,2]
[420091950,1775665847913,-501.07639,8.522e-05,2]
[420091951,1775665861142,300.0,8.521e-05,2]
[420091952,1775665861412,9624.02692029,8.44e-05,2]
[420091953,1775665921186,75.98307971,8.521e-05,2]
[420091954,1775665921212,224.01692029,8.521e-05,2]
[420091956,1775665981461,300.0,8.521e-05,2]
[420091957,1775665981749,150.0,8.521e-05,2]
[420091958,1775665993085,300.0,8.521e-05,2]
[420091959,1775665997818,500.0,8.521e-05,2]
[420091960,1775665997873,500.0,8.521e-05,2]
[420091961,1775665998059,486.74719823,8.521e-05,2]
[420091962,1775666005744,-4947.56,8.522e-05,2]
[420091963,1775666008526,-5000.01,8.522e-05,2]
[420091964,1775666008542,-5000.01,8.522e-05,2]
[420091965,1775666008557,-5000.01,8.522e-05,2]
[420091966,1775666010510,-5000.01,8.522e-05,2]
[420091967,1775666014774,1000.0,8.521e-05,2]
[420091968,1775666014924,-5000.01,8.522e-05,2]
[420091969,1775666014940,-5000.01,8.522e-05,2]
[420091970,1775666017487,-5000.01,8.522e-05,2]
[420091971,1775666017595,-5000.01,8.522e-05,2]
[420091972,1775666017705,-5000.01,8.522e-05,2]
[420091973,1775666020463,6539.24588148,8.521e-05,2]
[420091974,1775666020487,10000.01,8.521e-05,2]
[420091975,1775666021063,10000.01,8.521e-05,2]
[420091976,1775666021087,2027.06127538,8.521e-05,2]
[420091977,1775666021247,-5000.01,8.522e-05,2]
[420091978,1775666021285,-5000.01,8.522e-05,2]
[420091979,1775666021301,-5000.01,8.522e-05,2]
[420091980,1775666023499,-5000.01,8.522e-05,2]
[420091981,1775666023641,-5000.01,8.522e-05,2]
[420091982,1775666023757,-5000.01,8.522e-05,2]
[420091983,1775666026675,-5000.01,8.522e-05,2]
[420091984,1775666026903,-5000.01,8.522e-05,2]
[420091985,1775666027014,-5000.01,8.522e-05,2]
[420091986,1775666030631,-893.64778463,8.522e-05,2]
[420091987,1775666030667,-1787.29556926,8.522e-05,2]
[420091988,1775666030716,-1425.41886148,8.522e-05,2]
[420091989,1775666030855,-3212.71443074,8.522e-05,2]
[420091990,1775666030879,-1425.41886148,8.522e-05,2]
[420091991,1775666030894,-745.48670778,8.522e-05,2]
[420091992,1775666030904,-1403.68556926,8.522e-05,2]
[420091993,1775666035733,-5000.01,8.522e-05,2]
[420091994,1775666041929,300.0,8.521e-05,2]
[420091995,1775666041978,-5000.01,8.522e-05,2]
[420091996,1775666042629,1200.0,8.521e-05,2]
[420091997,1775666049380,-756.46443074,8.522e-05,2]
[420091998,1775666050097,-2263.7616,8.522e-05,2]
[420091999,1775666050216,-10000.01,8.522e-05,2]
[420092000,1775666050339,-1851.1284,8.522e-05,2]
[420092001,1775666050371,-999.99,8.522e-05,2]
[420092002,1775666050444,-4297.7732,8.522e-05,2]
[420092003,1775666050478,-4297.7932,8.522e-05,2]
[420092004,1775666050512,-1404.4236,8.522e-05,2]
[420092005,1775666050577,-4999.99,8.522e-05,2]
[420092006,1775666050654,-0.03,8.522e-05,2]
[420092007,1775666050691,-0.05,8.522e-05,2]
[420092008,1775666050716,-9999.91,8.522e-05,2]
[420092009,1775666050780,-0.02,8.522e-05,2]
[420092010,1775666050809,-9999.97,8.522e-05,2]
[420092011,1775666050906,-1535.14,8.522e-05,2]
[420092012,1775666050935,-6929.73,8.522e-05,2]
[420092013,1775666061509,500.0,8.418e-05,2]
[420092014,1775666090908,10000.01,8.178e-05,2]
[420092015,1775666090932,3956.782528,8.178e-05,2]
[420092016,1775666101156,300.0,8.521e-05,2]
[420092017,1775666101188,300.0,8.521e-05,2]
[420092018,1775666101222,1200.0,8.521e-05,2]
[420092019,1775666101312,282.0,8.521e-05,2]
[420092021,1775666161175,300.0,8.521e-05,2]
[420092023,1775666162437,300.0,8.521e-05,2]
[420092025,1775666175249,1500.0,8.272e-05,2]
[420092028,1775666221261,300.0,8.521e-05,2]
[420092029,1775666244017,1561.227472,8.422e-05,2]
[420092030,1775666244044,10000.01,8.422e-05,2]
[420092031,1775666244071,10000.01,8.422e-05,2]
[420092032,1775666244098,10000.01,8.422e-05,2]
[420092033,1775666244125,10000.01,8.422e-05,2]
[420092034,1775666244152,10000.01,8.422e-05,2]
[420092035,1775666244183,389.4790605,8.422e-05,2]
[420092036,1775666244217,81501.7117675,8.422e-05,2]
[420092037,1775666274350,4151.9571,8.422e-05,2]
[420092038,1775666281501,5848.0529,8.422e-05,2]
[420092039,1775666281525,10000.01,8.422e-05,2]
[420092040,1775666281557,28457.5778,8.422e-05,2]
[420092041,1775666312975,225.64,8.154e-05,3]
[420092042,1775666421635,564.66,8.477e-05,2]
[420092043,1775666464655,249.34,8.477e-05,2]
[420092044,1775666599266,-300.0,8.52e-05,2]
[420092045,1775666599301,-272.0,8.52e-05,2]
[420092046,1775666599344,-300.0,8.52e-05,2]
[420092047,1775666631972,7711.21,7.938e-05,2]
[420092048,1775666701112,200.0,8.52e-05,2]
[420092049,1775666701147,300.0,8.52e-05,2]
[420092050,1775666701179,300.0,8.52e-05,2]
[420092051,1775666701367,1200.0,8.52e-05,2]
[420092052,1775666703312,288.8,8.52e-05,2]
[420092053,1775666703337,11.2,8.52e-05,2]
[420092054,1775666786930,230.55,8.511e-05,2]
[420092055,1775666787679,281.78,8.514e-05,2]
[420092056,1775666814074,6506.4,8.521e-05,2]
[420092057,1775666821164,300.0,8.52e-05,2]
[420092058,1775666882242,300.0,8.52e-05,2]
[420092059,1775667032147,-5000.0,8.521e-05,2]
[420092061,1775667032158,-350.65047136,8.521e-05,2]
[420092062,1775667032167,-272.0,8.521e-05,2]
[420092063,1775667032177,-300.0,8.521e-05,2]
[420092064,1775667032186,-300.0,8.521e-05,2]
[420092065,1775667032195,-153.4513968,8.522e-05,2]
[420092066,1775667032205,-1000.0,8.522e-05,2]
[420092067,1775667032215,-1001.80981936,8.522e-05,2]
[420092068,1775667032224,-5000.0,8.524e-05,2]
[420092069,1775667032234,-150.0,8.534e-05,2]
[420092070,1775667032244,-2775.10094172,8.535e-05,2]
[420092071,1775667032377,-341.348914,8.535e-05,2]
[420092072,1775667032389,-910.90330755,8.535e-05,2]
[420092073,1775667032402,-1284.18884217,8.535e-05,2]
[420092074,1775667032415,-4989.94799456,8.535e-05,2]
[420092075,1775667032424,-2500.0,8.535e-05,2]
[420092076,1775667032435,-179.19,8.538e-05,2]
[420092077,1775667032445,-313.59,8.54e-05,2]
[420092078,1775667032455,-400.0,8.543e-05,2]
[420092079,1775667032464,-350.65047134,8.549e-05,2]
[420092080,1775667032475,-500.0,8.577e-05,2]
[420092081,1775667032485,-500.0,8.577e-05,2]
[420092082,1775667032495,-182.65387148,8.577e-05,2]
[420092083,1775667032505,-500.0,8.577e-05,2]
[420092084,1775667032514,-500.0,8.577e-05,2]
[420092085,1775667032524,-500.0,8.577e-05,2]
[420092086,1775667032534,-500.0,8.577e-05,2]
[420092087,1775667032544,-500.0,8.577e-05,2]
[420092088,1775667032554,-500.0,8.577e-05,2]
[420092089,1775667032564,-500.0,8.577e-05,2]
[420092090,1775667032574,-500.0,8.577e-05,2]
[420092091,1775667032584,-500.0,8.577e-05,2]
[420092092,1775667032594,-500.0,8.577e-05,2]
[420092102,1775667032989,-500.0,8.577e-05,2]
[420092103,1775667033009,-500.0,8.577e-05,2]
[420092104,1775667033020,-500.0,8.577e-05,2]
[420092105,1775667033030,-500.0,8.577e-05,2]
[420092106,1775667033041,-500.0,8.577e-05,2]
[420092107,1775667033051,-500.0,8.577e-05,2]
[420092108,1775667033060,-500.0,8.577e-05,2]
[420092109,1775667033071,-500.0,8.577e-05,2]
[420092110,1775667033081,-500.0,8.577e-05,2]
[420092111,1775667033090,-500.0,8.577e-05,2]
[420092112,1775667033100,-500.0,8.577e-05,2]
[420092113,1775667033110,-500.0,8.577e-05,2]
[420092114,1775667033120,-500.0,8.577e-05,2]
[420092115,1775667033129,-228.13558442,8.577e-05,2]
[420092116,1775667033259,-271.86441558,8.577e-05,2]
[420092117,1775667033270,-241.03643608,8.577e-05,2]
[420092120,1775667038593,-258.96356392,8.577e-05,2]
[420092121,1775667038633,-500.0,8.577e-05,2]
[420092122,1775667038670,-500.0,8.577e-05,2]
[420092123,1775667038707,-500.0,8.577e-05,2]
[420092124,1775667038743,-618.56713956,8.577e-05,2]
[420092125,1775667038778,-500.0,8.577e-05,2]
[420092126,1775667038813,-500.0,8.577e-05,2]
[420092127,1775667038848,-500.0,8.577e-05,2]
[420092128,1775667038883,-500.0,8.577e-05,2]
[420092129,1775667038919,-500.0,8.577e-05,2]
[420092130,1775667039037,-500.0,8.577e-05,2]